bitfinex-derivatives/quotes_ETHF0:USTF0_20251013
["timestamp","ask_amount","ask_price","bid_price","bid_amount"]
[1760313797528,0.4346,4137.8,4137.5,3.2078]
[1760313797731,0.3081,4138.5,4137.0,3.2078]
[1760313797732,0.7689,4137.9,4137.0,3.2078]
[1760313797933,0.3081,4138.5,4137.5,4.017]
[1760313798135,0.3081,4138.5,4138.2,0.43456]
[1760313798136,0.7689,4138.5,4138.2,0.43456]
[1760313798333,0.7689,4138.5,4137.7,0.4346]
[1760313798534,4.29408,4138.8,4137.6,3.2078]
[1760313798741,1.077,4138.0,4137.0,3.2078]
[1760313798935,0.7689,4137.9,4137.5,0.43463]
[1760313799138,0.7689,4137.9,4137.7,0.43461]
[1760313799338,0.7689,4138.3,4137.6,3.2078]
[1760313800739,0.7689,4138.3,4138.1,0.43457]
[1760313800940,0.7689,4138.4,4138.1,0.43457]
[1760313801238,3.2078,4138.6,4138.5,1.24373]
[1760313801431,0.00248593,4139.0,4138.9,0.43449]
[1760313801636,0.00248593,4139.0,4138.9,1.26399]
[1760313803340,0.00248593,4139.0,4138.7,0.4345]
[1760313803534,3.6423,4138.8,4138.0,3.2078]
[1760313803733,0.43449,4138.9,4138.3,0.43455]
[1760313803935,3.38551804,4139.0,4138.3,0.43455]
[1760313803936,0.4345,4138.8,4138.3,0.43455]
[1760313804135,3.50343211,4138.8,4138.3,0.43455]
[1760313804336,0.31658593,4139.0,4138.8,0.4345]
[1760313804337,3.06893211,4138.9,4138.8,0.4345]
[1760313804638,0.00248593,4139.0,4138.9,0.8295]
[1760313807136,0.786,4140.7,4138.9,1.70189916]
[1760313807342,3.2078,4140.8,4140.5,0.43432]
[1760313807944,0.786,4140.7,4140.3,0.43434]
[1760313808139,0.0028429,4140.7,4140.4,0.8295]
[1760313808439,0.0028429,4140.7,4140.3,3.21028112]
[1760313808440,0.0028429,4140.7,4140.6,0.8295]
[1760313810038,0.0028429,4140.7,4140.3,4.03978112]
[1760313810243,0.0028429,4140.7,4140.5,0.43431]
[1760313810439,0.0028429,4140.7,4140.6,0.8295]
[1760313812646,0.786,4142.8,4142.1,0.8295]
[1760313812843,0.43411,4142.6,4141.7,3.2078]
[1760313813142,0.786,4142.3,4142.1,0.43414]
[1760313813540,0.00273728,4142.3,4142.2,3.64194]
[1760313813841,0.00273728,4142.3,4141.7,0.43419]
[1760313814243,0.786,4142.2,4141.9,0.43417]
[1760313814440,0.00273728,4142.3,4141.9,1.26367]
[1760313814639,0.00273728,4142.3,4141.1,1.08563]
[1760313814640,0.786,4141.9,4141.1,3.2078]
[1760313814840,0.786,4141.2,4141.1,3.2078]
[1760313815043,0.786,4140.6,4140.5,3.2078]
[1760313815340,3.2078,4141.4,4140.5,0.43432]
[1760313815341,0.786,4140.8,4140.5,0.43432]
[1760313815539,0.786,4141.0,4140.5,0.43431]
[1760313815739,0.43426,4141.1,4140.3,0.00248112]
[1760313815740,0.43431,4140.7,4140.3,0.00248112]
[1760313815940,0.786,4140.6,4140.3,0.00248112]
[1760313816245,0.786,4140.6,4140.5,3.2078]
[1760313816640,40.8,4141.3,4140.5,3.2078]
[1760313816641,0.43426,4141.1,4140.5,3.2078]
[1760313816837,0.78873728,4142.3,4141.3,0.8295]
[1760313817139,0.78873728,4142.3,4141.7,1.26369]
[1760313817140,3.2078,4142.1,4141.7,1.26369]
[1760313817447,1.1001,4142.0,4141.1,4.0373]
[1760313817947,0.786,4142.0,4141.8,1.26367]
[1760313818140,3.2078,4142.1,4141.8,1.26367]
[1760313818644,3.2078,4142.1,4141.6,0.4342]
[1760313818840,0.786,4142.0,4141.1,3.2078]
[1760313819040,0.786,4141.9,4141.1,3.2078]
[1760313819251,0.786,4141.9,4141.6,0.4342]
[1760313819447,0.786,4141.9,4141.7,0.43419]
[1760313819946,0.786,4141.9,4141.5,0.43421]
[1760313820246,3.2078,4142.1,4141.7,0.8295]
[1760313820547,0.78873728,4142.3,4141.9,1.26366]
[1760313820844,0.00273728,4142.3,4141.8,3.2078]
[1760313821041,0.786,4142.2,4141.8,3.2078]
[1760313821241,0.43687728,4142.3,4141.8,3.64198]
[1760313822345,0.786,4142.2,4141.8,3.64198]
[1760313822748,0.43415,4142.2,4141.8,3.64198]
[1760313823446,0.786,4142.1,4141.9,0.43417]
[1760313823750,0.43415,4142.2,4141.7,0.43419]
[1760313824144,0.7874,4142.1,4141.7,0.43419]
[1760313824447,0.7874,4141.4,4140.7,3.2078]
[1760313824752,1.22161,4141.6,4140.8,0.775]
[1760313825044,0.7874,4141.6,4140.8,0.775]
[1760313825251,41.23422,4141.5,4140.9,3.64207]
[1760313825450,0.43428,4140.9,4140.4,0.43432]
[1760313825649,0.7874,4140.4,4140.3,3.21028112]
[1760313825954,3.20148173,4140.8,4140.7,0.775]
[1760313826152,1.22157,4142.0,4141.6,0.775]
[1760313826346,0.43414,4142.2,4141.6,1.2092]
[1760313826546,0.43415,4142.1,4141.4,3.64202]
[1760313826757,3.93131656,4142.2,4141.7,0.43418]
[1760313826946,3.93131656,4142.2,4141.7,1.20918]
[1760313826947,0.7874,4142.1,4141.7,1.20918]
[1760313827151,43.94391656,4142.2,4141.7,1.20918]
[1760313827353,41.23415,4142.2,4141.7,1.20918]
[1760313827742,0.7874,4142.1,4141.7,1.20918]
[1760313828451,0.00273728,4142.3,4141.0,0.3172]
[1760313828452,0.00273728,4142.3,4142.1,1.20914]
[1760313828653,0.00273728,4142.3,4142.2,0.775]
[1760313829551,0.00273728,4142.3,4142.0,3.2078]
[1760313829552,0.7874,4142.2,4142.0,3.2078]
[1760313829755,0.00273728,4142.3,4141.5,3.9828]
[1760313829950,1.2216,4141.6,4141.1,0.43426]
[1760313830151,1.0864,4141.0,4140.9,3.2078]
[1760313830548,4.26191163,4141.0,4140.9,3.2078]
[1760313830755,1.0864,4141.0,4140.1,3.2078]
[1760313830954,0.7874,4140.4,4139.7,0.4344]
[1760313831154,0.7874,4140.4,4139.8,0.43439]
[1760313831356,3.96291163,4140.4,4139.6,3.2078]
[1760313831756,3.17551163,4140.4,4140.3,0.76408112]
[1760313831961,3.94102,4141.5,4140.9,0.43427]
[1760313832262,0.8108,4141.2,4140.7,0.43429]
[1760313832458,0.8108,4141.3,4141.0,0.43427]
[1760313832761,0.8108,4141.3,4140.6,0.7616]
[1760313832958,3.5068,4141.5,4141.1,1.19585]
[1760313832959,3.2078,4141.5,4141.1,1.19585]
[1760313833155,0.8108,4141.4,4141.2,0.43424]
[1760313833362,3.2078,4141.5,4141.3,0.43423]
[1760313833561,3.2078,4141.5,4141.4,0.7616]
[1760313834361,3.2078,4142.1,4141.4,3.9694]
[1760313834557,3.2078,4142.1,4141.9,0.43417]
[1760313835157,4.0186,4142.1,4141.9,0.43417]
[1760313835352,0.4342,4141.6,4140.9,3.2078]
[1760313835558,0.3145,4141.5,4141.2,0.43424]
[1760313835758,3.52418369,4142.0,4141.1,0.43425]
[1760313835759,0.3145,4142.0,4141.1,0.43425]
[1760313835959,0.43421,4141.6,4141.1,0.43425]
[1760313836167,0.74872,4141.5,4141.1,0.43425]
[1760313836358,0.43423,4141.4,4140.9,0.43427]
[1760313836664,0.8108,4141.3,4140.9,0.43427]
[1760313836958,0.8108,4140.9,4140.3,3.21028112]
[1760313837164,0.8108,4140.9,4140.6,0.4343]
[1760313837353,0.3145,4141.0,4140.3,3.21028112]
[1760313837751,0.43431,4140.7,4140.3,3.21028112]
[1760313837957,0.8108,4140.6,4140.3,3.64461112]
[1760313838163,0.43431,4140.7,4140.3,3.64461112]
[1760313838460,3.95658,4141.0,4140.4,0.43432]
[1760313838662,3.2078,4141.0,4140.3,3.21028112]
[1760313838861,0.3145,4142.0,4140.8,0.43428]
[1760313838862,0.8108,4141.4,4140.8,0.43428]
[1760313839159,0.8108,4141.2,4140.8,0.43428]
[1760313839364,3.15931259,4141.3,4141.0,0.43426]
[1760313839564,0.8108,4141.2,4141.0,0.43426]
[1760313840466,0.3145,4141.0,4140.3,3.21028112]
[1760313840668,0.8108,4140.7,4140.3,0.00248112]
[1760313840860,0.8108,4140.7,4140.5,0.43432]
[1760313841165,0.43429,4140.8,4140.5,0.43432]
[1760313841362,0.8108,4140.7,4140.5,1.19592]
[1760313841664,0.8108,4140.7,4140.4,3.2078]
[1760313841665,0.43429,4140.8,4140.4,3.64213]
[1760313841968,0.8108,4140.7,4140.4,3.64213]
[1760313842158,0.8108,4140.9,4140.4,3.2078]
[1760313842465,0.43429,4140.8,4140.4,3.64213]
[1760313842667,0.8108,4140.7,4140.4,3.64213]
[1760313842861,0.8108,4140.6,4140.5,0.43431]
[1760313843961,0.8108,4140.6,4140.4,3.2078]
[1760313844163,0.8108,4140.7,4140.4,3.64212]
[1760313844366,0.8108,4140.7,4140.3,0.00248112]
[1760313844367,0.8108,4140.4,4140.3,0.00248112]
[1760313844763,3.9786546,4140.4,4140.3,0.00248112]
[1760313845062,3.9786546,4140.4,4139.1,0.7616]
[1760313845063,0.8108,4140.4,4139.2,3.2078]
[1760313845260,0.8108,4139.7,4139.3,0.43444]
[1760313845461,0.3145,4140.0,4139.7,0.4344]
[1760313845663,0.8108,4139.9,4139.7,0.4344]
[1760313845863,44.3223,4140.5,4139.8,0.7616]
[1760313846063,1.24515,4140.3,4139.8,0.43627372]
[1760313846265,0.43435,4140.3,4139.9,0.43438]
[1760313846469,44.75663,4140.5,4139.8,0.00188372]
[1760313846659,44.3223,4140.5,4140.2,0.43435]
[1760313846864,3.9777541,4140.4,4140.3,0.43434]
[1760313847875,3.2078,4140.5,4140.3,0.43434]
[1760313848174,3.2078,4140.5,4140.4,0.7616]
[1760313848565,3.2078,4141.2,4140.6,1.84738]
[1760313848771,3.2078,4141.2,4141.1,0.43426]
[1760313849073,3.2078,4141.2,4141.1,1.19586]
[1760313849569,0.8108,4140.8,4140.3,0.43434]
[1760313849773,0.43428,4140.9,4140.4,0.43433]
[1760313849973,0.3145,4141.0,4139.8,3.97128372]
[1760313849974,0.8108,4140.6,4140.2,0.43435]
[1760313850475,0.8108,4140.4,4139.8,0.00188372]
[1760313850665,3.41417944,4140.5,4139.8,0.00188372]
[1760313850666,0.8108,4139.9,4139.8,0.00188372]
[1760313851061,3.96911651,4139.9,4139.8,0.00188372]
[1760313851865,0.3145,4140.5,4139.8,0.00188372]
[1760313851866,0.3145,4140.5,4140.0,0.43436]
[1760313852072,3.2078,4140.6,4139.8,0.00188372]
[1760313852073,3.2078,4140.6,4140.4,0.43432]
[1760313852271,3.2078,4140.6,4140.4,1.19592]
[1760313852461,4.0186,4140.6,4140.4,1.19592]
[1760313852665,0.8108,4140.5,4140.4,0.43432]
[1760313853165,0.8108,4140.1,4139.8,0.43627372]
[1760313853366,0.8108,4139.9,4139.8,0.00188372]
[1760313853773,44.80771738,4139.9,4139.8,0.00188372]
[1760313855368,3.2078,4140.1,4139.9,0.43438]
[1760313855561,3.2078,4140.1,4140.0,0.7616]
[1760313855763,3.2078,4140.8,4140.7,0.4343]
[1760313855964,3.2078,4140.8,4140.7,1.1959]
[1760313856174,3.2078,4141.4,4141.3,0.43424]
[1760313856378,44.0078,4142.1,4141.8,0.43418]
[1760313856874,3.45797312,4142.0,4141.6,0.4342]
[1760313857066,0.8108,4141.9,4141.6,0.4342]
[1760313857267,0.8108,4141.9,4141.7,0.43419]
[1760313857468,0.8108,4141.7,4140.7,4.90457317]
[1760313857669,3.14347312,4141.8,4141.4,0.43422]
[1760313857876,0.8108,4141.8,4141.4,0.43422]
[1760313858068,1.1253,4141.5,4140.8,0.43429]
[1760313858263,0.3145,4141.5,4140.7,3.2078]
[1760313858473,0.8108,4141.3,4140.7,3.2078]
[1760313858673,0.8108,4141.3,4140.6,3.2078]
[1760313858877,0.43424,4141.4,4141.0,0.43426]
[1760313859177,0.8108,4141.3,4141.0,0.43426]
[1760313859474,4.0186,4141.6,4141.2,0.7616]
[1760313859774,4.0186,4141.6,4141.1,3.2078]
[1760313859970,4.0186,4141.6,4141.2,0.7616]
[1760313860277,0.8108,4141.5,4141.3,0.43423]
[1760313860469,3.2078,4141.6,4141.3,0.43423]
[1760313860671,3.2078,4141.6,4141.1,3.2078]
[1760313860672,0.8108,4141.5,4141.1,3.2078]
[1760313860872,0.8108,4141.5,4141.3,0.43423]
[1760313861179,0.8108,4141.5,4141.3,1.19583]
[1760313862079,0.43421,4141.6,4141.1,3.64206]
[1760313862281,1.2208,4141.7,4141.3,0.43423]
[1760313862577,3.58155164,4141.7,4141.3,0.43423]
[1760313862879,0.4342,4141.7,4141.3,0.43423]
[1760313863082,0.7866,4141.5,4141.3,0.43423]
[1760313863376,0.7866,4141.5,4141.3,1.21783]
[1760313863682,0.7866,4141.5,4141.4,0.7836]
[1760313864077,0.00273728,4142.3,4141.6,0.7836]
[1760313864282,0.7866,4142.2,4142.0,0.43416]
[1760313864477,0.43687728,4142.3,4142.0,0.43416]
[1760313864668,0.00273728,4142.3,4141.8,3.2078]
[1760313864870,1.53537,4142.0,4141.7,0.43419]
[1760313865174,0.3146,4142.0,4141.7,0.43419]
[1760313865474,0.3146,4141.5,4141.3,0.43423]
[1760313865679,0.7866,4141.4,4141.3,0.43423]
[1760313866071,0.7866,4141.4,4140.9,3.9914]
[1760313866072,0.74877,4142.0,4141.5,0.43421]
[1760313866279,0.7866,4141.9,4141.5,0.43421]
[1760313866481,0.7866,4141.9,4141.7,0.43419]
[1760313867078,0.00273728,4142.3,4142.2,0.43414]
[1760313867277,0.78933728,4142.3,4142.2,0.43414]
[1760313867477,0.00273728,4142.3,4142.2,1.21774]
[1760313868273,0.78933728,4142.3,4142.2,1.21774]
[1760313868477,0.00273728,4142.3,4142.2,1.21774]
[1760313868778,0.78933728,4142.3,4142.2,1.21774]
[1760313869682,0.78933728,4142.3,4142.2,4.42554]
[1760313869876,0.00273728,4142.3,4142.2,4.42554]
[1760313870677,0.00273728,4142.3,4142.2,3.64194]
[1760313870881,0.43416,4142.1,4141.8,0.43418]
[1760313871089,0.7866,4141.9,4141.8,0.43418]
[1760313871375,0.00273728,4142.3,4142.2,0.43414]
[1760313871580,0.78933728,4142.3,4142.2,0.43414]
[1760313872773,0.78933728,4142.3,4141.9,0.7836]
[1760313872774,0.00273728,4142.3,4141.6,3.2078]
[1760313872974,1.1012,4142.0,4141.3,1.0856]
[1760313873382,0.7866,4142.0,4141.9,0.43417]
[1760313873684,0.43686728,4142.3,4141.8,0.43418]
[1760313873685,0.43415,4142.2,4141.8,0.43418]
[1760313873885,0.7866,4142.1,4141.9,0.43417]
[1760313874582,41.23415,4142.2,4141.9,0.43417]
[1760313874881,41.23415,4142.2,4141.6,0.4342]
[1760313874882,0.43418,4141.9,4141.6,0.4342]
[1760313875383,0.4342,4141.7,4141.4,0.43422]
[1760313875586,0.4342,4141.7,4141.0,3.2078]
[1760313875587,0.7866,4141.7,4141.5,0.43421]
[1760313875777,0.74882,4141.5,4141.0,3.2078]
[1760313875978,0.7866,4141.4,4141.1,0.43425]
[1760313876177,1.22084,4141.3,4141.1,0.43425]
[1760313876377,1.22084,4141.3,4140.3,0.7836]
[1760313876378,0.7866,4141.3,4140.5,3.2078]
[1760313876583,0.7866,4141.1,4140.9,0.43428]
[1760313876783,0.3146,4141.0,4140.9,0.43428]
[1760313876986,0.7866,4140.9,4140.4,0.43433]
[1760313877183,0.7866,4140.8,4140.4,0.43432]
[1760313877383,0.7866,4140.8,4140.5,0.43431]
[1760313878084,3.5224,4141.0,4140.0,0.5]
[1760313878085,0.7866,4140.4,4140.0,0.5]
[1760313878479,0.3146,4140.5,4140.0,0.5]
[1760313878981,0.7866,4140.3,4140.0,0.5]
[1760313879174,0.7866,4140.3,4140.2,0.43434]
[1760313879584,3.5224,4141.0,4140.7,0.43429]
[1760313879784,3.2078,4141.0,4140.9,0.43428]
[1760313879989,3.2078,4141.0,4140.9,1.21788]
[1760313880174,44.7944,4141.0,4140.9,0.43428]
[1760313880481,0.7866,4140.9,4140.5,0.43431]
[1760313880686,1.22089,4140.9,4140.3,0.43434]
[1760313880887,0.7866,4140.7,4140.4,0.43432]
[1760313881183,1.1012,4140.5,4140.4,0.43432]
[1760313881385,44.3224,4141.0,4140.8,0.43428]
[1760313881588,0.7866,4140.9,4140.8,0.43428]
[1760313881886,3.98066351,4140.9,4140.8,0.43428]
[1760313882085,0.7866,4141.4,4140.4,3.2078]
[1760313882293,3.2078,4141.5,4141.3,0.43424]
[1760313882581,3.2078,4141.5,4141.4,0.7836]
[1760313884178,0.00273728,4142.3,4141.4,3.9914]
[1760313884383,0.7298,4142.2,4141.4,3.9914]
[1760313884983,0.7298,4142.2,4141.8,0.43418]
[1760313885293,0.7298,4142.2,4141.9,0.43417]
[1760313885492,0.00273728,4142.3,4141.9,0.43417]
[1760313886486,0.00273728,4142.3,4142.0,0.43416]
[1760313886888,0.7298,4142.2,4142.0,0.43416]
[1760313887088,1.16395,4142.2,4141.8,0.43418]
[1760313887488,0.43415,4142.2,4141.8,0.43418]
[1760313887691,0.43415,4142.2,4141.9,0.43417]
[1760313888086,0.7298,4142.2,4142.0,0.43416]
[1760313888295,0.7298,4142.2,4142.1,0.43414]
[1760313888593,7.28e-06,4142.3,4142.2,0.786]
[1760313888892,0.7298,4143.6,4143.5,1.22]
[1760313889587,3.2078,4143.7,4143.5,0.434]
[1760313889782,3.21068491,4143.7,4143.6,0.786]
[1760313890381,3.21068491,4143.7,4143.5,0.00291221]
[1760313890382,1.1638,4143.6,4143.5,0.00291221]
[1760313890786,0.7298,4142.8,4142.3,0.43413]
[1760313890994,1.1639,4142.6,4142.2,3.64194]
[1760313891196,0.4341,4142.6,4142.2,3.64194]
[1760313891587,0.7592,4142.5,4142.2,3.64194]
[1760313891788,0.7592,4142.5,4142.3,0.43413]
[1760313892292,0.4341,4142.6,4142.3,0.43413]
[1760313892488,3.2078,4142.9,4142.5,0.4341]
[1760313892788,0.7592,4143.3,4142.8,0.7453]
[1760313892989,0.43403,4143.3,4142.9,0.43406]
[1760313893189,0.43403,4143.3,4143.0,0.43405]
[1760313893495,0.7592,4143.3,4142.8,0.43407]
[1760313893791,3.64182,4143.4,4143.0,0.43405]
[1760313894388,0.7592,4143.3,4143.0,0.43405]
[1760313894590,3.64182,4143.4,4143.0,0.43405]
[1760313894792,0.43403,4143.3,4143.0,0.43405]
[1760313895001,3.2078,4143.4,4142.6,0.7453]
[1760313895191,0.43405,4143.2,4142.6,0.7453]
[1760313895392,3.2078,4143.4,4142.2,3.21020559]
[1760313895393,3.64182,4143.4,4142.9,0.43406]
[1760313895587,0.7592,4143.2,4142.9,0.43406]
[1760313896091,0.43404,4143.2,4142.9,0.43406]
[1760313896290,0.7592,4143.1,4142.9,0.43406]
[1760313896485,0.7592,4143.1,4142.7,3.64188]
[1760313896685,0.7592,4143.0,4142.7,3.64188]
[1760313897192,0.43403,4143.3,4142.7,3.2078]
[1760313897394,0.7592,4143.1,4142.9,0.43406]
[1760313897596,0.7592,4143.1,4142.7,3.2078]
[1760313897597,0.7592,4143.6,4142.8,0.7453]
[1760313897799,0.7592,4143.6,4143.4,0.43401]
[1760313897990,0.7592,4143.6,4143.4,1.17931]
[1760313898295,0.00288491,4143.7,4143.6,1.1793]
[1760313898694,0.7592,4144.9,4143.7,1.08497]
[1760313898898,3.64165,4145.0,4144.5,3.2078]
[1760313899103,3.967,4145.0,4144.5,3.4967]
[1760313899293,3.5131,4145.0,4144.0,0.7453]
[1760313899497,0.7592,4144.4,4143.7,0.43398]
[1760313899696,0.7592,4144.2,4143.9,0.7453]
[1760313900001,0.43394,4144.2,4143.9,0.7453]
[1760313900299,0.00312738,4144.4,4143.2,3.2078]
[1760313900497,0.7592,4143.4,4142.7,3.2078]
[1760313900692,0.43404,4143.2,4143.0,0.7453]
[1760313900896,0.3053,4143.5,4142.7,3.64189]
[1760313900897,0.43407,4142.9,4142.7,3.2078]
[1760313901097,0.7592,4142.8,4142.7,3.2078]
[1760313901292,3.08771286,4143.3,4142.3,0.7453]
[1760313901293,1.08509,4143.3,4142.3,0.7453]
[1760313901505,10.84884,4144.1,4142.2,0.00240559]
[1760313901506,0.7592,4142.3,4142.2,0.00240559]
[1760313901805,3.08771286,4142.8,4142.2,1.18183559]
[1760313901806,0.43408,4142.8,4142.2,1.18183559]
[1760313902799,0.7592,4142.3,4142.2,0.00240559]
[1760313903195,3.95472744,4142.3,4142.2,0.00240559]
[1760313903998,0.43428,4140.9,4140.3,3.7078]
[1760313904299,3.16416841,4140.8,4140.3,3.7078]
[1760313904502,0.43432,4140.6,4140.3,0.5]
[1760313904701,0.7592,4140.4,4140.3,0.5]
[1760313904903,0.76152611,4140.4,4140.3,0.50263089]
[1760313905400,0.76152611,4140.4,4140.3,3.71043089]
[1760313905599,0.00232611,4140.4,4140.3,4.89007089]
[1760313905797,0.76152611,4140.4,4140.3,3.71043089]
[1760313906809,0.76152611,4140.4,4140.3,0.50263089]
[1760313907307,0.00232611,4140.4,4140.3,4.45573089]
[1760313907796,0.76152611,4140.4,4140.3,0.50263089]
[1760313908306,3.85221651,4140.4,4140.3,0.50263089]
[1760313908803,3.83916191,4140.4,4140.3,0.50263089]
[1760313909204,0.76152611,4140.4,4140.3,0.50263089]
[1760313909408,0.76152611,4140.4,4140.3,3.71043089]
[1760313910107,0.00232611,4140.4,4140.3,4.45573089]
[1760313911205,0.7592,4141.8,4141.4,1.17952]
[1760313911399,0.7592,4141.8,4140.5,0.2889]
[1760313911400,0.7592,4141.9,4141.7,0.43419]
[1760313911600,41.1053,4143.0,4142.4,0.43411]
[1760313911810,41.1053,4143.0,4141.7,1.83079]
[1760313911811,0.7592,4143.4,4142.7,3.9531]
[1760313912107,0.0019217,4143.4,4142.7,3.9531]
[1760313912310,0.0019217,4143.4,4143.3,0.7453]
[1760313912500,0.0019217,4143.4,4143.3,0.74793988]
[1760313913301,0.7611217,4143.4,4143.3,0.00263988]
[1760313913499,0.0019217,4143.4,4143.3,0.00263988]
[1760313913705,0.0019217,4143.4,4143.3,1.18196988]
[1760313913904,0.0019217,4143.4,4143.3,0.74793988]
[1760313914297,0.43386,4145.0,4144.1,0.43393]
[1760313914510,0.43385,4145.1,4144.5,3.2078]
[1760313914812,0.3053,4146.5,4143.5,0.2889]
[1760313914813,0.4339,4144.6,4144.0,3.2078]
[1760313915000,0.43391,4144.5,4144.0,3.2078]
[1760313915201,0.43391,4144.5,4144.4,0.7453]
[1760313915202,0.00308185,4144.5,4144.4,0.7453]
[1760313915704,1.19311,4144.4,4143.8,0.7453]
[1760313916101,0.7592,4144.3,4143.6,3.2078]
[1760313916301,0.7592,4144.2,4143.6,3.2078]
[1760313916705,0.7592,4143.7,4143.6,3.2078]
[1760313916909,0.7592,4143.7,4143.3,0.00263988]
[1760313916910,1.19322,4143.4,4143.3,0.00263988]
[1760313917106,0.7592,4143.4,4143.3,0.00263988]
[1760313917415,44.74577676,4143.4,4143.3,0.00263988]
[1760313917713,44.74577676,4143.4,4142.7,3.2078]
[1760313918006,44.74577676,4143.4,4142.0,3.2078]
[1760313918007,0.7592,4142.8,4142.0,3.2078]
[1760313918199,43.98657676,4143.4,4142.5,4.38721]
[1760313918200,44.42059676,4143.4,4142.5,4.38721]
[1760313918401,0.43404,4143.2,4142.5,4.38721]
[1760313918602,1.19327,4142.9,4142.0,3.64195]
[1760313918802,1.19327,4142.9,4142.0,3.21015366]
[1760313919003,0.7592,4142.9,4142.6,0.4341]
[1760313919200,0.4341,4142.6,4142.0,3.21015366]
[1760313919400,0.43414,4142.3,4142.0,0.00235366]
[1760313919602,1.19335,4142.1,4142.0,0.00235366]
[1760313920006,4.40004812,4142.1,4142.0,0.00235366]
[1760313920410,3.96589812,4142.1,4142.0,0.00235366]
[1760313920601,1.0645,4143.0,4142.3,0.43413]
[1760313920802,1.0645,4143.0,4142.1,1.17945]
[1760313921009,0.43412,4142.5,4142.0,0.00235366]
[1760313921313,0.7592,4142.4,4142.0,0.00235366]
[1760313921506,1.14725,4142.1,4142.0,0.00235366]
[1760313921915,4.21555543,4142.1,4142.0,0.00235366]
[1760313922407,3.2078,4143.2,4142.1,0.7759]
[1760313922611,0.43411,4142.6,4142.1,0.7759]
[1760313922811,0.7131,4142.9,4142.1,0.7759]
[1760313922812,3.06830543,4142.7,4142.2,0.43414]
[1760313923007,0.43408,4142.8,4142.2,0.43414]
[1760313923510,0.7131,4142.6,4142.2,0.43414]
[1760313923813,3.12878778,4142.7,4142.2,0.43414]
[1760313923814,0.43408,4142.8,4142.2,0.43414]
[1760313924012,0.7131,4142.7,4142.2,0.43414]
[1760313924216,1.14723,4142.4,4142.0,3.64431366]
[1760313924511,0.7131,4142.1,4142.0,3.21015366]
[1760313925604,3.9209,4142.7,4142.0,3.21015366]
[1760313925809,1.1472,4142.7,4142.0,3.21015366]
[1760313926105,3.1642054,4142.6,4142.0,3.21015366]
[1760313926704,3.1642054,4142.6,4142.2,0.43414]
[1760313926910,0.7131,4142.5,4142.2,0.43414]
[1760313927214,0.4341,4142.7,4142.3,0.43413]
[1760313927609,0.7131,4142.5,4142.3,0.43413]
[1760313928005,0.7131,4142.6,4142.3,0.43413]
[1760313928312,0.7131,4142.5,4142.1,0.43415]
[1760313928713,0.7131,4142.4,4142.2,0.43414]
[1760313928914,0.7131,4142.4,4142.3,0.43413]
[1760313929213,0.7131,4142.6,4142.1,0.43415]
[1760313929409,0.7131,4142.3,4142.1,0.43415]
[1760313929608,0.43413,4142.4,4142.1,0.43415]
[1760313930017,0.7131,4142.4,4142.1,0.43415]
[1760313930211,0.43414,4142.2,4142.0,3.21015366]
[1760313930413,0.7131,4142.1,4142.0,0.00235366]
[1760313930718,0.74612,4141.5,4140.9,3.2078]
[1760313931018,0.7131,4141.3,4140.9,3.2078]
[1760313931214,3.15567401,4141.4,4140.9,3.2078]
[1760313931512,2.17019,4143.3,4140.9,3.2078]
[1760313931513,4.355,4142.6,4141.4,1.08557]
[1760313931706,0.7131,4142.4,4141.7,1.21009]
[1760313931913,0.43414,4142.2,4141.8,0.43418]
[1760313932114,0.7131,4142.3,4142.0,0.43416]
[1760313932313,3.08104293,4142.4,4142.2,0.43414]
[1760313932615,0.7131,4142.3,4142.2,0.43414]
[1760313932814,0.7131,4142.4,4142.1,3.2078]
[1760313933012,3.0663332,4142.4,4142.2,0.43414]
[1760313933316,0.00210978,4142.5,4142.4,1.21002]
[1760313933515,0.00210978,4142.5,4142.4,0.43412]
[1760313933710,0.00210978,4142.5,4142.1,3.2078]
[1760313933916,0.7131,4142.2,4142.1,3.2078]
[1760313934214,0.7131,4142.2,4141.0,2.47764715]
[1760313934215,0.7131,4141.8,4141.5,0.43421]
[1760313934520,1.025,4141.5,4141.4,3.2078]
[1760313934908,4.18104026,4141.5,4141.4,3.2078]
[1760313935108,4.18104026,4141.5,4140.9,0.00206118]
[1760313935109,1.14737,4141.0,4140.9,0.00206118]
[1760313935320,1.14737,4141.0,4140.3,0.5]
[1760313935321,3.9209,4141.0,4140.3,0.5]
[1760313935515,0.43433,4140.5,4140.3,0.5]
[1760313935813,3.83497373,4140.4,4140.3,0.5]
[1760313936214,7.04277373,4140.4,4140.3,0.5]
[1760313936415,7.04277373,4140.4,4140.3,0.0105841]
[1760313936814,0.43446,4139.2,4138.6,3.2078]
[1760313937116,6.37208742,4139.1,4138.6,3.2078]
[1760313937316,0.7131,4138.7,4138.6,3.2078]
[1760313937721,3.88045809,4138.7,4138.6,0.00275157]
[1760313938520,3.88045809,4138.7,4137.7,0.43461]
[1760313938719,0.7131,4138.0,4137.9,0.43459]
[1760313938922,3.2078,4138.1,4137.9,0.43459]
[1760313939118,3.2078,4138.1,4137.3,0.7759]
[1760313939119,0.00307067,4138.7,4138.4,0.43454]
[1760313939325,0.00307067,4138.7,4138.3,4.41825]
[1760313939522,3.83194864,4138.6,4138.1,0.43456]
[1760313939722,0.7131,4138.5,4138.2,0.43455]
[1760313940022,0.00307067,4138.7,4138.4,0.43453]
[1760313940218,0.71617067,4138.7,4137.7,3.9858436]
[1760313940520,3.2078,4138.3,4137.7,0.0021436]
[1760313940725,0.7131,4138.2,4137.7,0.0021436]
[1760313940922,3.86687219,4138.2,4137.7,0.0021436]
[1760313941227,3.58834219,4138.2,4137.7,0.0021436]